bitfinex-derivatives/quotes_ETHF0:USTF0_20251213
["timestamp","ask_amount","ask_price","bid_price","bid_amount"]
[1765668242663,4.70015393,3113.4,3113.3,1.62987]
[1765668243063,3.2078,3113.8,3113.6,1.62985]
[1765668243367,1.49451556,3113.7,3113.6,0.86505]
[1765668244364,1.49863517,3113.7,3113.6,0.86505]
[1765668246464,1.49863517,3113.7,3113.6,1.62985]
[1765668250166,1.49863517,3113.7,3113.6,0.16055]
[1765668250366,0.77803517,3113.7,3113.6,1.62985]
[1765668250666,1.49863517,3113.7,3113.6,1.62985]
[1765668251166,1.49863517,3113.7,3113.6,2.6887859]
[1765668253675,1.49863517,3113.7,3113.6,1.62985]
[1765668254166,0.77803517,3113.7,3113.6,1.62985]
[1765668254570,1.49863517,3113.7,3113.6,1.62985]
[1765668259278,1.49863517,3113.7,3113.6,0.86505]
[1765668260572,1.49863517,3113.7,3113.6,0.16055]
[1765668261273,1.49863517,3113.7,3113.6,0.86505]
[1765668261871,1.49863517,3113.7,3113.6,0.16055]
[1765668266073,1.4693,3113.4,3113.3,4.15357898]
[1765668266279,1.4693,3113.4,3112.9,4.26630025]
[1765668266480,1.79855062,3113.4,3113.3,0.7195]
[1765668266676,1.49850025,3113.5,3113.4,0.48136071]
[1765668266871,6.17560025,3113.5,3113.4,0.48136071]
[1765668267180,12.76594168,3113.5,3113.4,0.16056]
[1765668267473,11.70744143,3113.5,3113.4,0.16056]
[1765668267675,10.23814143,3113.5,3113.3,0.16056]
[1765668267878,2.62521661,3113.4,3113.3,0.88006]
[1765668268576,2.62521661,3113.4,3113.3,0.49729117]
[1765668268881,2.62521661,3113.4,3113.3,1.20599117]
[1765668269179,2.62521661,3113.4,3113.3,0.49729117]
[1765668269580,2.62521661,3113.4,3113.3,0.65785117]
[1765668271184,2.62521661,3113.4,3113.3,0.16309959]
[1765668275186,4.93298582,3113.4,3113.3,0.16309959]
[1765668275780,2.62521661,3113.4,3113.3,0.16309959]
[1765668275986,2.62521661,3113.4,3112.3,3.46519758]
[1765668276285,4.6771,3112.8,3112.7,0.7195]
[1765668276585,5.83301661,3112.8,3112.7,0.1606]
[1765668276888,5.83301661,3112.8,3112.7,0.16372156]
[1765668278478,1.4693,3112.4,3112.3,0.72431556]
[1765668278678,2.62521661,3112.4,3112.3,0.72431556]
[1765668279172,2.62521661,3112.4,3112.3,0.00481556]
[1765668279383,2.62521661,3112.4,3112.3,0.16543556]
[1765668279585,2.62521661,3112.4,3112.3,0.16901604]
[1765668280185,4.35442279,3112.4,3112.3,0.16901604]
[1765668280687,4.35442279,3112.4,3111.9,3.2078]
[1765668280688,1.175,3112.0,3111.9,4.636]
[1765668280883,2.33091661,3112.0,3111.9,4.636]
[1765668281088,2.33091661,3112.0,3111.9,4.79664]
[1765668281484,2.33091661,3112.0,3111.9,5.04758557]
[1765668281689,2.33091661,3112.0,3111.9,5.05051635]
[1765668282492,3.06521661,3112.0,3111.9,4.34181635]
[1765668283097,3.06521661,3112.0,3111.9,5.05051635]
[1765668284399,4.79271358,3112.0,3111.9,4.34181635]
[1765668286003,4.79271358,3112.0,3111.9,3.37137078]
[1765668286201,4.79188329,3112.0,3111.9,4.09087078]
[1765668286395,4.79188329,3112.0,3111.9,4.79957078]
[1765668286396,2.88258329,3112.0,3111.9,4.79957078]
[1765668287502,1.15591661,3112.0,3111.9,4.79957078]
[1765668288704,1.59591661,3112.0,3111.9,1.59177078]
[1765668289705,1.4693,3111.7,3111.6,0.72431556]
[1765668289909,2.62521661,3111.7,3111.6,0.72431556]
[1765668290207,2.62521661,3111.7,3111.6,1.43301556]
[1765668290606,2.62521661,3111.7,3111.6,1.59366556]
[1765668290906,2.62521661,3111.7,3111.6,1.5975069]
[1765668291101,1.4693,3111.7,3111.6,1.85313163]
[1765668291302,2.62565993,3111.7,3111.6,1.85313163]
[1765668297813,2.62565993,3111.7,3111.6,1.14443163]
[1765668298412,2.62565993,3111.7,3111.6,1.94343163]
[1765668301117,1.15635993,3111.7,3111.6,3.00340337]
[1765668301312,2.64935993,3111.7,3111.6,1.94343163]
[1765668301917,2.64935993,3111.7,3111.6,1.14443163]
[1765668302109,2.64935993,3111.7,3111.6,0.1693069]
[1765668302315,1.493,3111.2,3111.1,3.947]
[1765668302517,2.64935993,3111.2,3111.1,4.746]
[1765668303221,2.65217287,3111.2,3111.1,4.74970501]
[1765668303617,2.65217287,3111.2,3111.1,5.16546343]
[1765668304922,2.65217287,3111.2,3111.1,4.36646343]
[1765668305225,2.65217287,3111.2,3111.1,0.90358501]
[1765668308037,2.65217287,3111.2,3111.1,1.61188501]
[1765668308316,1.88757287,3111.2,3111.1,1.61188501]
[1765668308538,1.15917287,3111.2,3111.1,1.61188501]
[1765668308829,1.93257287,3111.2,3111.1,1.61188501]
[1765668309028,1.93257287,3111.2,3111.1,2.67185675]
[1765668310226,2.70507287,3111.2,3111.1,2.67185675]
[1765668310527,1.93257287,3111.2,3111.1,2.67185675]
[1765668313430,1.15917287,3111.2,3111.1,2.67185675]
[1765668315028,1.15917287,3111.2,3111.1,1.61188501]
[1765668315230,3.76504461,3111.2,3111.1,0.16438501]
[1765668320726,2.70507287,3111.2,3111.1,0.16438501]
[1765668320933,3.76504461,3111.2,3111.1,0.16438501]
[1765668322230,3.76504461,3111.2,3111.1,0.91528501]
[1765668322431,3.76504461,3111.2,3111.1,0.16438501]
[1765668325429,6.97284461,3111.2,3111.1,0.16438501]
[1765668326435,6.97284461,3111.2,3111.1,0.89238501]
[1765668326826,5.14037287,3111.2,3111.1,1.61698501]
[1765668327227,5.91177287,3111.2,3111.1,0.89238501]
[1765668330436,5.91177287,3111.2,3111.1,1.66008501]
[1765668331433,5.91177287,3111.2,3111.1,0.89238501]
[1765668335638,2.70397287,3111.2,3111.1,0.89238501]
[1765668340636,2.70397287,3111.2,3111.1,0.16438501]
[1765668342542,2.70397287,3111.2,3111.1,0.93168501]
[1765668342946,2.70397287,3111.2,3111.1,0.16438501]
[1765668344140,2.70418072,3111.2,3111.1,0.16438501]
[1765668352843,2.70418072,3111.2,3111.1,1.69938501]
[1765668353050,2.70418072,3111.2,3111.1,0.93168501]
[1765668353242,2.70418072,3111.2,3111.1,0.16438501]
[1765668362051,5.91198072,3111.2,3111.1,0.16438501]
[1765668365550,5.91198072,3111.2,3111.1,2.65017918]
[1765668365752,4.36718072,3111.2,3111.1,2.65017918]
[1765668365949,5.11508072,3111.2,3111.1,2.65017918]
[1765668366154,5.86598072,3111.2,3111.1,2.65017918]
[1765668367153,5.86598072,3111.2,3111.1,1.95427918]
[1765668368855,5.86598072,3111.2,3111.1,2.65017918]
[1765668370259,5.86598072,3111.2,3111.1,1.95427918]
[1765668370756,2.65818072,3111.2,3111.1,1.95427918]
[1765668376064,2.65818072,3111.2,3111.1,2.65017918]
[1765668376663,2.65818072,3111.2,3111.1,1.95427918]
[1765668379367,2.65818072,3111.2,3111.1,1.22477918]
[1765668381971,2.65818072,3111.2,3111.1,1.95427918]
[1765668382166,2.65818072,3111.2,3111.1,1.22477918]
[1765668383370,2.65818072,3111.2,3111.1,1.95427918]
[1765668384376,2.65818072,3111.2,3111.1,1.22477918]
[1765668384776,2.65818072,3111.2,3111.1,2.63997918]
[1765668384974,2.65998072,3111.2,3111.1,2.63997918]
[1765668392386,2.65998072,3111.2,3111.1,1.93147918]
[1765668393186,2.65998072,3111.2,3111.1,0.16438501]
[1765668394990,1.1922,3110.5,3110.4,1.5212]
[1765668395183,0.4486,3110.5,3110.4,2.58159417]
[1765668395483,0.4486,3110.5,3110.4,2.83530874]
[1765668395987,0.4486,3110.5,3110.4,2.83909732]
[1765668396585,0.4486,3110.5,3110.4,2.99981732]
[1765668397090,5.1535,3111.0,3110.9,0.16069]
[1765668397287,6.3101711,3111.0,3110.9,0.16069]
[1765668397486,6.3101711,3111.0,3110.9,0.92179]
[1765668397688,4.8130711,3111.0,3110.9,1.68189]
[1765668398192,6.3101711,3111.0,3110.9,1.68189]
[1765668399893,6.3101711,3111.0,3110.9,2.74213056]
[1765668401197,3.1023711,3111.0,3110.9,2.74213056]
[1765668401896,3.1023711,3111.0,3110.9,1.68189]
[1765668407798,3.1023711,3111.0,3110.9,0.92179]
[1765668410894,3.1023711,3111.0,3110.9,1.68189]
[1765668411090,3.1023711,3111.0,3110.9,2.74213056]
[1765668418205,1.6052711,3111.0,3110.9,2.74213056]
[1765668418399,1.1566711,3111.0,3110.9,2.74213056]
[1765668418705,2.3693711,3111.0,3110.9,2.74213056]
[1765668420203,1.1566711,3111.0,3110.9,2.74213056]
[1765668420398,4.7019,3111.9,3111.8,0.93044]
[1765668420804,4.7019,3111.9,3111.8,0.16064]
[1765668421306,1.4941,3111.3,3111.2,3.2078]
[1765668421605,1.49782626,3111.3,3111.2,3.36848]
[1765668421996,2.55806682,3111.3,3111.2,3.36848]
[1765668422407,1.49782626,3111.3,3111.2,3.36848]
[1765668430714,2.55806682,3111.3,3111.2,1e-08]
[1765668430911,1.9372,3110.5,3110.4,3.46530315]
[1765668432612,1.9372,3110.5,3110.4,3.62602315]
[1765668432918,1.9372,3110.5,3110.4,4.39582315]
[1765668434203,2.99744056,3110.5,3110.4,0.41822315]
[1765668435414,2.99807365,3110.5,3110.4,0.41822315]
[1765668438916,2.99807365,3110.5,3110.4,1.18802315]
[1765668438917,1.9372,3110.5,3110.4,1.18802315]
[1765668440521,1.9372,3110.5,3110.4,1.93532315]
[1765668440719,0.4431,3110.5,3110.4,1.93532315]
[1765668441016,1.2127,3110.5,3110.4,1.93532315]
[1765668441421,1.9372,3110.5,3110.4,1.93532315]
[1765668441624,1.2127,3110.5,3110.4,1.93532315]
[1765668441821,0.4431,3110.5,3110.4,1.93532315]
[1765668443026,3.2078,3110.9,3110.8,1.6778]
[1765668443220,3.2078,3110.9,3110.8,2.73867365]
[1765668443624,3.98112626,3111.3,3111.2,1.67778]
[1765668443828,3.98112626,3111.3,3111.2,2.73865365]
[1765668444025,4.70562626,3111.3,3111.2,2.73865365]
[1765668444722,0.00372626,3111.3,3111.2,5.94645365]
[1765668444916,2.78754033,3112.9,3111.6,1.67775]
[1765668445223,1.93891556,3112.0,3111.9,1.22151365]
[1765668445620,0.44481556,3112.0,3111.9,2.74101365]
[1765668446130,1.14811556,3112.0,3111.9,2.74101365]
[1765668446624,0.0076478,3112.0,3111.9,2.74101365]
[1765668449129,1.8705,3112.5,3112.4,1.63191]
[1765668449427,1.8705,3112.5,3112.4,5.90058365]
[1765668449728,1.8705,3112.5,3112.4,5.17838365]
[1765668449927,1.8734309,3112.5,3112.4,4.42928365]
[1765668450830,1.8734309,3112.5,3112.4,3.36841]
[1765668451219,1.8734309,3112.5,3112.4,0.16061]
[1765668458535,1.8734309,3112.5,3112.4,0.92891]
[1765668458937,1.8734309,3112.5,3112.4,0.16061]
[1765668477141,3.02947662,3112.5,3112.4,0.16061]
[1765668479349,3.02947662,3112.5,3112.4,0.85691]
[1765668479943,3.02947662,3112.5,3112.4,1.59331]
[1765668481651,3.02947662,3112.5,3112.4,0.85691]
[1765668481853,3.02947662,3112.5,3112.4,0.16061]
[1765668482150,3.02947662,3112.5,3112.4,0.85691]
[1765668482354,3.02947662,3112.5,3112.4,1.59331]
[1765668486061,1.8734309,3112.5,3112.4,1.59331]
[1765668486455,1.1493309,3112.5,3112.4,1.59331]
[1765668487661,1.9047309,3112.5,3112.4,1.59331]
[1765668488066,1.9047309,3112.5,3112.4,0.16061]
[1765668489464,2.96414423,3112.5,3112.4,0.16061]
[1765668489662,1.4602,3112.2,3112.1,0.00481556]
[1765668490567,1.4602,3112.2,3112.1,0.16544556]
[1765668501876,1.4602,3111.7,3111.6,3.2078]
[1765668502081,0.7048,3111.3,3111.2,4.6405]
[1765668503681,0.7048,3111.3,3111.2,4.80118]
[1765668503884,1.4602,3111.3,3111.2,4.80118]
[1765668505176,1.4602,3111.3,3111.2,4.06478]
[1765668505381,1.4602,3111.3,3111.2,3.36848]
[1765668505682,1.4602,3111.3,3111.2,4.13468]
[1765668507678,1.8855,3111.5,3111.4,1.63687]
[1765668509789,1.8855,3111.5,3111.4,0.92687]
[1765668510479,1.8855,3111.5,3111.4,0.16067]
[1765668513090,1.8855,3111.5,3111.4,0.92687]
[1765668513391,1.8855,3111.5,3111.4,0.16067]
[1765668513592,1.8855,3111.5,3111.4,0.92687]
[1765668516187,3.6347,3112.0,3111.9,0.16064]
[1765668516494,5.0933,3112.0,3111.9,0.16064]
[1765668516689,5.0933,3112.0,3111.9,0.92684]
[1765668516886,5.0933,3112.0,3111.9,1.63684]
[1765668517193,5.0933,3112.0,3111.9,0.92684]
[1765668517392,5.0933,3112.0,3111.9,0.16064]
[1765668520398,0.4269,3112.0,3111.9,1.63684]
[1765668520697,4.6664,3112.4,3112.3,0.16062]
[1765668521001,5.82259954,3112.4,3112.3,0.16062]
[1765668532910,5.82259954,3112.4,3112.3,1.22015138]
[1765668533101,5.82259954,3112.4,3112.3,1.98635138]
[1765668533304,4.6664,3112.4,3112.3,1.98635138]
[1765668535706,4.6664,3112.4,3112.3,0.92682]
[1765668536314,5.72593138,3112.4,3112.3,0.16062]
[1765668539314,6.88210229,3112.4,3112.3,0.16062]
[1765668539919,5.82257091,3112.4,3112.3,0.16062]
[1765668540119,6.88210229,3112.4,3112.3,0.16062]
[1765668541119,5.72593138,3112.4,3112.3,0.16062]
[1765668541319,6.88209496,3112.4,3112.3,0.16062]
[1765668542918,5.82256358,3112.4,3112.3,1.22015138]
[1765668543121,0.6972,3112.4,3112.3,2.63585138]
[1765668543422,1.49701556,3112.8,3112.7,1.5763]
[1765668543723,0.00481556,3112.8,3112.7,3.69536276]
[1765668543926,0.00481556,3112.8,3112.7,3.69349426]
[1765668544324,0.00748428,3112.8,3112.7,3.69725988]
[1765668544824,3.9544,3113.2,3113.1,1.4157]
[1765668545031,3.2078,3113.2,3113.1,2.47429713]
[1765668545323,4.7,3113.2,3113.1,1.92987713]
[1765668545723,4.70270994,3113.2,3113.1,1.92987713]
[1765668545920,4.70270994,3113.2,3113.1,2.63487713]
[1765668546826,3.95710994,3113.2,3113.1,2.63487713]
[1765668547324,3.21050994,3113.2,3113.1,2.63487713]
[1765668550927,4.70270994,3113.2,3113.1,1.92987713]
[1765668552031,4.70270994,3113.2,3113.1,0.16058]
[1765668554629,1.49490994,3113.2,3113.1,1.92987713]
[1765668554830,1.49490994,3113.2,3113.1,2.63487713]
[1765668555135,0.74930994,3113.2,3113.1,2.63487713]
[1765668555732,1.49490994,3113.2,3113.1,2.63487713]
[1765668559437,1.49490994,3113.2,3113.1,1.92987713]
[1765668559738,1.49490994,3113.2,3113.1,2.63487713]
[1765668560733,1.49490994,3113.2,3113.1,0.16058]
[1765668560933,4.70270994,3113.2,3113.1,0.16058]
[1765668562231,4.70270994,3113.2,3112.2,1.05859713]
[1765668562232,1.4922,3112.5,3112.4,0.1576791]
[1765668562431,1.4922,3112.5,3112.3,0.16062]
[1765668562432,1.4922,3112.4,3112.3,0.16062]
[1765668562633,2.55079713,3112.4,3112.3,0.16062]
[1765668563328,2.55079713,3112.4,3112.3,0.16342024]
[1765668565433,1.4922,3112.4,3112.3,0.87412024]
[1765668565839,1.4922,3112.4,3112.3,0.86252024]
[1765668566142,2.55079713,3112.4,3112.3,0.16342024]
[1765668571949,3.9531,3112.6,3112.5,2.00081]
[1765668572246,3.9531,3112.6,3112.5,3.05940713]
[1765668572547,4.6918,3112.6,3112.5,3.05940713]
[1765668572940,3.2078,3112.6,3112.5,3.05940713]
[1765668574247,4.6918,3112.6,3112.5,1.28731]
[1765668574545,4.6918,3112.6,3112.5,0.58821]
[1765668574746,4.6918,3112.6,3112.5,1.28731]
[1765668574947,5.75039713,3112.6,3112.5,0.16061]
[1765668579553,5.75124249,3112.6,3112.5,0.16061]
[1765668581954,4.6918,3112.6,3112.5,0.16061]
[1765668584854,4.6918,3112.6,3112.5,1.28731]
[1765668585056,3.9531,3112.6,3112.5,2.00081]
[1765668585256,4.6918,3112.6,3112.5,2.00081]
[1765668586153,4.6918,3112.6,3112.5,1.28731]
[1765668586962,4.6918,3112.6,3112.5,2.00081]
[1765668593066,3.2078,3112.6,3112.5,2.00081]
[1765668593666,3.9531,3112.6,3112.5,2.00081]
[1765668595968,4.6918,3112.6,3112.5,2.00081]
[1765668600266,3.9165,3112.6,3112.5,3.06024496]
[1765668600467,3.2078,3112.6,3112.5,3.06024496]
[1765668601273,4.6631,3113.0,3112.9,1.5149]
[1765668601474,5.81905962,3113.0,3112.9,1.5149]
[1765668602064,4.6631,3113.0,3112.9,1.5149]
[1765668602280,4.6631,3113.0,3112.9,1.67549]
[1765668602574,3.2078,3113.0,3112.9,1.67549]
[1765668602876,3.9165,3113.0,3112.9,1.67549]
[1765668603479,3.2078,3113.0,3112.9,1.67549]
[1765668605676,3.9165,3113.0,3112.9,1.67549]
[1765668605976,4.6631,3113.0,3112.9,1.67549]
[1765668607072,1.4553,3113.0,3112.9,1.67549]
[1765668609279,4.6631,3113.0,3112.9,1.67549]
[1765668634100,4.6631,3113.0,3112.9,0.93319]
[1765668635006,1.4553,3113.0,3112.9,0.93319]
[1765668635197,4.6631,3113.0,3112.9,0.93319]
[1765668635397,4.6631,3113.0,3112.9,0.16059]
[1765668635795,6.21878623,3113.0,3112.9,0.16059]
[1765668637403,5.0629,3113.0,3112.9,0.16059]
[1765668641002,4.6631,3113.0,3112.9,0.16059]
[1765668641916,5.7222711,3113.0,3112.9,0.16059]
[1765668647512,6.1220711,3113.0,3112.9,0.16059]
[1765668647715,1.4447,3112.4,3112.3,0.00280024]
[1765668648518,1.4447,3112.4,3112.3,0.16342024]
[1765668648718,1.4447,3112.4,3112.3,0.90522024]
[1765668649014,2.5038711,3112.4,3112.3,0.16342024]
[1765668651414,1.4447,3112.4,3112.3,0.16342024]
[1765668652415,1.4447,3112.4,3112.3,0.90522024]
[1765668652619,1.4447,3112.4,3112.3,2.71334721]
[1765668655321,1.4447,3112.4,3112.3,0.16342024]
[1765668655727,4.6525,3112.4,3112.3,0.16342024]
[1765668655928,5.71202697,3112.4,3112.3,0.16342024]
[1765668657239,4.6525,3112.4,3112.3,0.16342024]
[1765668657932,5.71202697,3112.4,3112.3,0.16342024]
[1765668660840,1.0072,3111.6,3111.5,0.4283]
[1765668661040,5.27452697,3111.6,3111.5,1.30596]
[1765668661236,5.27452697,3111.6,3111.5,2.06876]
[1765668661542,5.27452697,3111.6,3111.5,1.30596]
[1765668661938,5.27452697,3111.6,3111.5,1.31009387]
[1765668662337,5.27452697,3111.6,3111.5,0.59479387]
[1765668667847,5.27452697,3111.6,3111.5,0.16479387]
[1765668672151,5.27452697,3111.6,3111.5,0.59479387]
[1765668672344,5.27452697,3111.6,3111.5,0.16479387]
[1765668677150,4.215,3111.6,3111.5,2.07289387]
[1765668681955,3.7114,3111.6,3111.5,2.07289387]
[1765668683357,4.215,3111.6,3111.5,2.07289387]
[1765668683758,3.7114,3111.6,3111.5,2.07289387]
[1765668685859,4.2151,3111.6,3111.5,2.07289387]
[1765668686856,4.2151,3111.6,3111.5,3.13266159]
[1765668688062,3.2078,3111.6,3111.5,4.19242931]
[1765668688261,0.00481556,3111.9,3111.8,1.57564]
[1765668688454,0.00481556,3111.9,3111.8,2.63540772]
[1765668698162,2.07518328,3111.9,3111.8,0.87574]
[1765668698367,2.07518328,3111.9,3111.8,1.57564]
[1765668698568,1.01541556,3111.9,3111.8,1.57564]
[1765668698766,0.51011556,3111.9,3111.8,2.63540772]
[1765668699966,0.00481556,3111.9,3111.8,2.63540772]
[1765668701071,0.51011556,3111.9,3111.8,2.63540772]
[1765668703975,0.51011556,3111.9,3111.8,1.57564]
[1765668704369,1.01541556,3111.9,3111.8,1.57564]
[1765668706074,0.51011556,3111.9,3111.8,1.57564]
[1765668710473,0.00481556,3111.9,3111.8,1.57564]
[1765668710675,0.51011556,3111.9,3111.8,1.57564]
[1765668711175,0.00481556,3111.9,3111.8,1.57564]
[1765668717779,0.00481556,3111.9,3111.8,2.63531943]
[1765668718585,0.50831556,3111.9,3111.8,2.63531943]
[1765668718889,0.00481556,3111.9,3111.8,2.63531943]
[1765668722689,0.00481556,3111.9,3111.8,1.57564]
[1765668727094,1.01181556,3111.9,3111.8,0.87574]
[1765668727392,2.07131462,3111.9,3111.8,1.59034]
[1765668727590,2.07131462,3111.9,3111.8,0.88734]
[1765668728300,2.07131462,3111.9,3111.8,1.59034]
[1765668729801,2.07131462,3111.9,3111.8,0.88734]
[1765668731303,2.07131462,3111.9,3111.8,0.16064]
[1765668731705,2.07131462,3111.9,3111.8,0.88734]
[1765668731904,2.07131462,3111.9,3111.8,1.59034]
[1765668732305,1.01181556,3111.9,3111.8,1.59034]
[1765668737916,0.00481556,3111.9,3111.8,1.59034]
[1765668741619,0.50831556,3111.9,3111.8,1.59034]
[1765668742320,0.00481556,3111.9,3111.8,1.59034]
[1765668742618,0.50831556,3111.9,3111.8,1.59034]
[1765668745022,0.00481556,3111.9,3111.8,1.59034]
[1765668745924,0.50831556,3111.9,3111.8,1.59034]
[1765668746824,0.00481556,3111.9,3111.8,1.59034]
[1765668748324,0.50831556,3111.9,3111.8,1.59034]
[1765668749725,0.00481556,3111.9,3111.8,1.59034]
[1765668752528,0.50831556,3111.9,3111.8,1.59034]
[1765668752927,1.01181556,3111.9,3111.8,1.59034]
[1765668753528,0.50831556,3111.9,3111.8,1.59034]
[1765668754331,0.00481556,3111.9,3111.8,1.59034]
[1765668754930,0.50831556,3111.9,3111.8,1.59034]
[1765668756734,0.00481556,3111.9,3111.8,1.59034]
[1765668760138,2.07148228,3111.9,3111.8,0.16064]
[1765668760331,2.07148228,3111.9,3111.8,0.92324]
[1765668760937,2.07148228,3111.9,3111.8,1.67044]
[1765668764037,2.07181337,3111.9,3111.8,1.67044]
[1765668766240,3.2078,3112.0,3111.9,1.67044]
[1765668766653,3.7113,3112.0,3111.9,1.67044]
[1765668766835,4.2148,3112.0,3111.9,1.67044]
[1765668767039,5.27479781,3112.0,3111.9,0.16064]
[1765668767238,4.2148,3112.0,3111.9,1.67044]
[1765668768141,3.2078,3112.0,3111.9,1.67044]
[1765668769450,3.7113,3112.0,3111.9,1.67044]
[1765668770242,4.2148,3112.0,3111.9,1.67044]
[1765668771845,4.2148,3112.0,3111.9,0.16064]
[1765668772547,4.2148,3112.0,3111.9,1.67044]
[1765668782946,3.7113,3112.0,3111.9,1.67044]
[1765668783250,4.215,3112.0,3111.9,1.67044]
[1765668788553,4.215,3112.0,3111.9,0.92324]
[1765668788754,4.215,3112.0,3111.9,1.63544]
[1765668789053,3.2078,3112.0,3111.9,3.75543562]
[1765668789254,0.00481556,3112.3,3112.2,1.63172]
[1765668789454,0.00481556,3112.3,3112.2,3.75171562]
[1765668790557,0.00481556,3112.3,3112.2,2.69171781]
[1765668791054,1.01221556,3112.3,3112.2,2.69171781]
[1765668791251,1.01221556,3112.3,3112.2,0.16062]
[1765668791654,2.07221337,3112.3,3112.2,0.16062]
[1765668791859,1.01221556,3112.3,3112.2,0.16062]
[1765668792356,1.0074,3111.7,3111.6,0.00481556]
[1765668792557,2.06739781,3111.7,3111.6,0.16546556]
[1765668793858,2.06777237,3111.7,3111.6,0.16546556]
[1765668797757,1.0074,3111.7,3111.6,0.16546556]
[1765668797958,1.0074,3111.7,3111.6,0.92436556]
[1765668798165,1.0074,3111.7,3111.6,1.63656556]
[1765668798665,1.0074,3111.7,3111.6,0.92436556]
[1765668802168,1.0074,3111.7,3111.6,1.63656556]
[1765668803471,1.0074,3111.7,3111.6,0.92436556]
[1765668804472,2.06777237,3111.7,3111.6,0.92436556]
[1765668808977,5.27557237,3111.7,3111.6,0.92436556]
[1765668810576,4.2152,3111.7,3111.6,1.64326556]
[1765668813872,4.2152,3111.7,3111.6,0.92436556]
[1765668815982,4.2152,3111.7,3111.6,0.16546556]
[1765668818374,4.2152,3111.7,3111.6,0.87836556]
[1765668818875,4.2152,3111.7,3111.6,1.59726556]
[1765668819076,3.2078,3111.7,3111.6,1.59726556]
[1765668819480,4.2158,3111.7,3111.6,0.16546556]
[1765668820075,4.2158,3111.7,3111.6,0.87836556]
[1765668821282,4.2158,3111.7,3111.6,0.16546556]
[1765668821879,4.2158,3111.7,3111.6,0.87836556]
[1765668823789,4.2158,3111.7,3111.6,0.16546556]
[1765668824391,4.2158,3111.7,3111.6,0.87836556]
[1765668829101,4.2158,3111.7,3111.6,0.16546556]
[1765668830598,4.2158,3111.7,3111.6,0.87836556]
[1765668833504,4.2158,3111.7,3111.6,0.16546556]
[1765668839506,4.2158,3111.7,3111.6,0.89476556]
[1765668839711,3.2078,3111.7,3111.6,1.65646556]
[1765668840003,3.7118,3111.7,3111.6,1.65646556]
[1765668840203,4.2158,3111.7,3111.6,1.65646556]
[1765668852507,3.7118,3111.7,3111.6,1.65646556]
[1765668853310,4.2158,3111.7,3111.6,1.65646556]
[1765668856713,4.2158,3111.7,3111.6,0.16546556]
[1765668862511,4.2158,3111.7,3111.6,0.89476556]
[1765668862920,4.2158,3111.7,3111.6,1.65646556]
[1765668865815,4.2158,3111.7,3111.6,0.16546556]
[1765668866620,4.2158,3111.7,3111.6,0.93106556]
[1765668866918,4.2158,3111.7,3111.6,1.64206556]
[1765668868118,4.2158,3111.7,3111.6,0.93106556]
[1765668868921,4.2158,3111.7,3111.6,1.64206556]
[1765668869113,4.2158,3111.7,3111.6,0.93106556]
[1765668869420,4.2158,3111.7,3111.6,0.16546556]
[1765668874229,4.2158,3111.7,3111.6,1.64206556]
[1765668874925,4.2158,3111.7,3111.6,0.93106556]
[1765668876529,4.2158,3111.7,3111.6,0.16546556]
[1765668877629,4.2158,3111.7,3111.6,0.93106556]
[1765668883334,4.2158,3111.7,3111.6,0.16546556]
[1765668888237,4.2158,3111.7,3111.6,0.93106556]
[1765668888938,4.2158,3111.7,3111.6,0.16546556]
[1765668892535,4.2158,3111.7,3111.6,0.93106556]
[1765668893337,4.2158,3111.7,3111.6,1.64206556]
[1765668894643,4.2158,3111.7,3111.6,0.93106556]
[1765668894937,4.2158,3111.7,3111.6,0.16546556]
[1765668899242,4.2158,3111.7,3111.6,0.92816556]
[1765668900542,4.2158,3111.7,3111.6,1.69906556]
[1765668901041,4.2158,3111.7,3111.6,0.92816556]
[1765668901242,4.2158,3111.7,3111.6,0.16546556]
[1765668901539,1.0082,3111.6,3111.5,0.00413387]
[1765668901737,1.0082,3111.1,3111.0,0.58339]
[1765668902040,1.0082,3111.1,3111.0,1.34609]
[1765668902738,1.0082,3111.1,3111.0,2.12062479]
[1765668903140,1.0082,3111.1,3111.0,0.58702479]
[1765668903335,1.0082,3111.1,3111.0,1.34972479]
[1765668903941,2.06854531,3111.1,3111.0,0.58702479]
[1765668904141,1.0082,3111.1,3111.0,1.34972479]
[1765668907739,1.0082,3111.1,3111.0,0.58702479]
[1765668908047,2.06854531,3111.1,3111.0,0.16432479]
[1765668910148,5.27634531,3111.1,3111.0,0.16432479]
[1765668910654,5.27634531,3111.1,3110.5,3.6306]
[1765668910853,0.6796,3110.6,3110.5,3.79131]
[1765668911545,0.68306332,3110.6,3110.5,3.37113152]
[1765668913050,0.68306332,3110.6,3110.5,4.55443152]
[1765668913352,0.68306332,3110.6,3110.5,5.32533152]
[1765668914450,0.68306332,3110.6,3110.5,2.11753152]
[1765668915847,0.68306332,3110.6,3110.5,0.58393152]
[1765668918648,0.68306332,3110.6,3110.5,2.11753152]
[1765668919555,0.68306332,3110.6,3110.5,1.34663152]
[1765668922557,0.68306332,3110.6,3110.5,0.58393152]
[1765668922955,0.68306332,3110.6,3110.5,1.34663152]
[1765668924560,0.68306332,3110.6,3110.5,2.11753152]
[1765668925261,0.34326332,3110.6,3110.5,2.11753152]
[1765668926563,0.68346332,3110.6,3110.5,2.11753152]
[1765668930161,3.895,3111.1,3111.0,2.08249]
[1765668930464,4.95534531,3111.1,3111.0,0.16069]
[1765668931267,4.95864487,3111.1,3111.0,0.16069]
[1765668935876,4.95864487,3111.1,3111.0,0.62329]
[1765668938382,4.95883364,3111.1,3111.0,0.62329]
[1765668941882,4.95883364,3111.1,3111.0,1.34769]
[1765668942183,4.95883364,3111.1,3111.0,2.08249]
[1765668942485,3.21109956,3111.1,3111.0,2.08249]
[1765668946585,0.00329956,3111.1,3111.0,2.08249]
[1765668947887,0.00329956,3111.1,3111.0,3.14256007]
[1765668948995,0.00329956,3111.1,3111.0,2.08249]
[1765668949193,0.00329956,3111.1,3111.0,3.14256007]
[1765668956597,0.00020722,3111.1,3111.0,3.14256007]
[1765668958695,3.2078,3111.5,3111.4,1.61477]
[1765668958896,3.2078,3111.5,3111.4,2.67484007]
[1765668959600,3.21044828,3111.5,3111.4,2.67484007]
[1765668960399,0.00264828,3111.5,3111.4,2.67484007]
[1765668961899,3.55571556,3112.3,3112.2,1.4541]
[1765668962198,1.15038689,3113.1,3112.6,0.1606]
[1765668962506,1.4501,3113.1,3113.0,1.1752]
[1765668962999,1.4501,3113.1,3113.0,0.447]